lending/lending_fUSD_20241229
["ID","MTS","AMOUNT","RATE_DAILY","PERIOD"]
[347062118,1735488640579,-500.0,0.00011538,2]
[347062120,1735488640588,-500.0,0.00011538,2]
[347062122,1735488640597,-455.97298244,0.00011538,2]
[347062124,1735488640606,-528.48766982,0.00011538,2]
[347062126,1735488640616,-500.0,0.00011538,2]
[347062128,1735488640625,-500.0,0.00011539,2]
[347062130,1735488640634,-500.0,0.00011539,2]
[347062132,1735488640643,-500.0,0.00011539,2]
[347062134,1735488640652,-500.0,0.00011539,2]
[347062136,1735488640662,-500.0,0.00011539,2]
[347062138,1735488640671,-500.0,0.00011539,2]
[347062140,1735488640681,-563.68,0.00011539,2]
[347062142,1735488640690,-554.54,0.00011539,2]
[347062144,1735488640699,-927.1,0.00011539,2]
[347062146,1735488640709,-500.0,0.00011539,2]
[347062148,1735488640718,-1089.32,0.00011539,2]
[347062150,1735488640727,-500.0,0.00011539,2]
[347062152,1735488640736,-500.0,0.00011539,2]
[347062154,1735488640746,-645.44,0.00011539,2]
[347062156,1735488640755,-500.0,0.00011539,2]
[347062158,1735488640764,-500.0,0.00011539,2]
[347062160,1735488640773,-500.0,0.00011539,2]
[347062162,1735488640782,-500.0,0.00011539,2]
[347062164,1735488640791,-500.0,0.00011539,2]
[347062166,1735488640801,-500.0,0.00011539,2]
[347062168,1735488640811,-500.0,0.00011539,2]
[347062170,1735488640820,-1546.9,0.00011539,2]
[347062172,1735488640829,-804.07,0.00011539,2]
[347062174,1735488640838,-500.0,0.00011539,2]
[347062176,1735488640847,-516.71,0.00011539,2]
[347062178,1735488640856,-680.27,0.00011539,2]
[347062180,1735488640865,-753.03,0.00011539,2]
[347062182,1735488640874,-500.0,0.00011539,2]
[347062184,1735488640885,-500.0,0.00011539,2]
[347062186,1735488640894,-500.0,0.00011539,2]
[347062188,1735488640903,-500.0,0.00011539,2]
[347062190,1735488640912,-500.0,0.00011539,2]
[347062192,1735488640921,-1145.97,0.00011539,2]
[347062194,1735488640930,-500.0,0.00011539,2]
[347062196,1735488640940,-500.0,0.00011539,2]
[347062198,1735488640949,-500.0,0.00011539,2]
[347062200,1735488640959,-500.0,0.00011539,2]
[347062202,1735488640969,-164.53173579,0.00011539,2]
[347062204,1735488640979,-779.8,0.00011539,2]
[347062206,1735488640989,-2319.96,0.00011539,2]
[347062209,1735488640999,-500.0,0.00011539,2]
[347062211,1735488641008,-1742.95,0.00011539,2]
[347062213,1735488641018,-500.0,0.00011539,2]
[347062215,1735488641028,-869.89,0.00011539,2]
[347062217,1735488641037,-1678.59,0.00011539,2]
[347062219,1735488641046,-678.07,0.00011539,2]
[347062221,1735488641055,-500.0,0.00011539,2]
[347062223,1735488641064,-1863.04,0.00011539,2]
[347062224,1735488641073,-500.0,0.00011539,2]
[347062226,1735488641082,-896.33,0.00011539,2]
[347062229,1735488641091,-500.0,0.00011539,2]
[347062231,1735488641101,-500.0,0.00011539,2]
[347062233,1735488641110,-1238.45,0.00011539,2]
[347062235,1735488641119,-500.0,0.00011539,2]
[347062237,1735488641128,-500.0,0.00011539,2]
[347062239,1735488641138,-500.0,0.00011539,2]
[347062241,1735488641147,-500.0,0.00011539,2]
[347062243,1735488641156,-500.0,0.00011539,2]
[347062245,1735488641165,-1061.17,0.00011539,2]
[347062247,1735488641174,-1154.54,0.00011539,2]
[347062249,1735488641183,-500.0,0.00011539,2]
[347062251,1735488641192,-500.0,0.00011539,2]
[347062252,1735488641201,-790.5,0.00011539,2]
[347062254,1735488641210,-585.48,0.00011539,2]
[347062257,1735488641220,-500.0,0.00011539,2]
[347062259,1735488641229,-500.0,0.00011539,2]
[347062261,1735488641239,-537.73,0.00011539,2]
[347062263,1735488641249,-500.0,0.00011539,2]
[347062265,1735488641260,-500.0,0.00011539,2]
[347062267,1735488641270,-500.0,0.00011539,2]
[347062269,1735488641279,-500.0,0.00011539,2]
[347062271,1735488641289,-500.0,0.00011539,2]
[347062273,1735488641298,-500.0,0.00011539,2]
[347062275,1735488641308,-500.0,0.00011539,2]
[347062277,1735488641317,-500.0,0.00011539,2]
[347062279,1735488641326,-1568.83,0.00011539,2]
[347062281,1735488641336,-500.0,0.00011539,2]
[347062283,1735488641345,-500.0,0.00011539,2]
[347062285,1735488641355,-577.88,0.00011539,2]
[347062287,1735488641364,-500.0,0.00011539,2]
[347062289,1735488641373,-500.0,0.00011539,2]
[347062291,1735488641383,-833.39,0.00011539,2]
[347062293,1735488641392,-500.0,0.00011539,2]
[347062295,1735488641402,-500.0,0.00011539,2]
[347062297,1735488641411,-500.0,0.00011539,2]
[347062299,1735488641420,-1710.95,0.00011539,2]
[347062301,1735488641430,-751.2,0.00011539,2]
[347062303,1735488641439,-500.0,0.00011539,2]
[347062305,1735488641449,-500.0,0.00011539,2]
[347062307,1735488641458,-500.0,0.00011539,2]
[347062309,1735488641467,-1842.84,0.00011539,2]
[347062311,1735488641476,-1214.59,0.00011539,2]
[347062313,1735488641485,-500.0,0.00011539,2]
[347062315,1735488641496,-500.0,0.00011539,2]
[347062317,1735488641505,-1111.53,0.00011539,2]
[347062319,1735488641515,-500.0,0.00011539,2]
[347062321,1735488641524,-500.0,0.00011539,2]
[347062323,1735488641534,-2016.37,0.00011539,2]
[347062325,1735488641543,-803.09,0.00011539,2]
[347062327,1735488641552,-2199.44,0.00011539,2]
[347062329,1735488641562,-233.16146617,0.00011539,2]
[347062331,1735488641571,-636.13072478,0.00011539,2]
[347062333,1735488641581,-627.86,0.00011539,2]
[347062335,1735488641591,-506.03,0.00011539,2]
[347062337,1735488641600,-500.0,0.00011539,2]
[347062340,1735488641613,-2744.8,0.00011539,2]
[347062341,1735488641622,-515.97,0.00011539,2]
[347062343,1735488641632,-500.0,0.00011539,2]
[347062345,1735488641641,-1105.66,0.00011539,2]
[347062348,1735488641651,-500.0,0.00011539,2]
[347062350,1735488641661,-500.0,0.00011539,2]
[347062352,1735488641671,-824.59,0.00011539,2]
[347062354,1735488641680,-500.0,0.00011539,2]
[347062356,1735488641690,-500.0,0.00011539,2]
[347062358,1735488641700,-514.45,0.00011539,2]
[347062360,1735488641710,-500.0,0.00011539,2]
[347062361,1735488641720,-520.07367844,0.00011539,2]
[347062363,1735488641730,-500.0,0.00011539,2]
[347062365,1735488641739,-500.0,0.00011539,2]
[347062368,1735488641750,-502.20963025,0.00011539,2]
[347062370,1735488641760,-2073.14,0.00011539,2]
[347062372,1735488641770,-500.0,0.00011539,2]
[347062374,1735488641780,-500.0,0.00011539,2]
[347062376,1735488641789,-645.56,0.00011539,2]
[347062378,1735488641798,-500.0,0.00011539,2]
[347062379,1735488641808,-515.49,0.00011539,2]
[347062382,1735488641818,-500.0,0.00011539,2]
[347062384,1735488641827,-500.0,0.00011539,2]
[347062385,1735488641836,-500.0,0.00011539,2]
[347062388,1735488641846,-500.0,0.00011539,2]
[347062390,1735488641856,-500.0,0.00011539,2]
[347062392,1735488641865,-1244.84,0.00011539,2]
[347062394,1735488641875,-500.0,0.00011539,2]
[347062396,1735488641884,-1292.05,0.00011539,2]
[347062398,1735488641894,-553.76,0.00011539,2]
[347062400,1735488641903,-501.76,0.00011539,2]
[347062402,1735488641912,-500.0,0.00011539,2]
[347062404,1735488641921,-500.0,0.00011539,2]
[347062406,1735488641930,-1896.52,0.00011539,2]
[347062408,1735488641944,-1229.43,0.00011539,2]
[347062411,1735488641961,-500.0,0.00011539,2]
[347062414,1735488641974,-500.0,0.00011539,2]
[347062416,1735488641988,-1020.66,0.00011539,2]
[347062419,1735488642004,-1083.79,0.00011539,2]
[347062421,1735488642019,-581.4,0.00011539,2]
[347062424,1735488642034,-4260.97,0.00011539,2]
[347062426,1735488642046,-2471.12,0.00011539,2]
[347062429,1735488642060,-2302.7,0.00011539,2]
[347062431,1735488642075,-585.21,0.00011539,2]
[347062434,1735488642090,-596.39,0.00011539,2]
[347062437,1735488642105,-1467.06,0.00011539,2]
[347062439,1735488642118,-989.93,0.00011539,2]
[347062442,1735488642135,-140.25275653,0.00011539,2]
[347062446,1735488642158,-788.21724347,0.00011539,2]
[347062448,1735488642172,-500.0,0.00011539,2]
[347062451,1735488642188,-503.66,0.00011539,2]
[347062454,1735488642204,-1390.57,0.00011539,2]
[347062456,1735488642217,-139.76675653,0.00011539,2]
[347062459,1735488642231,-525.755001,0.00011539,2]
[347062460,1735488642272,-120.92824247,0.00011539,2]
[347062461,1735488642288,-585.23,0.00011539,2]
[347062462,1735488642300,-401.27490753,0.00011539,2]
[347062464,1735488642313,-98.72509247,0.00011539,2]
[347062467,1735488642336,-291.51717553,0.00011539,2]
[347062472,1735488642370,-208.48282447,0.00011539,2]
[347062474,1735488642383,-500.0,0.00011539,2]
[347062477,1735488642396,-2250.58,0.00011539,2]
[347062479,1735488642408,-489.6400232,0.00011539,2]
[347062482,1735488642424,-102.1999768,0.00011539,2]
[347062484,1735488642437,-500.0,0.00011539,2]
[347062487,1735488642449,-850.01274553,0.00011539,2]
[347062489,1735488642464,-518.96725447,0.00011539,2]
[347062492,1735488642476,-35.19274553,0.00011539,2]
[347062495,1735488642502,-464.80725447,0.00011539,2]
[347062498,1735488642514,-1025.22,0.00011539,2]
[347062500,1735488642527,-500.0,0.00011539,2]
[347062503,1735488642539,-1529.19,0.00011539,2]
[347062506,1735488642552,-263.61889376,0.00011539,2]
[347062508,1735488642564,-536.05,0.00011539,2]
[347062510,1735488642577,-500.0,0.00011539,2]
[347062513,1735488642590,-500.0,0.00011539,2]
[347062516,1735488642604,-2661.11,0.00011539,2]
[347062519,1735488642617,-873.52,0.00011539,2]
[347062522,1735488642630,-500.0,0.00011539,2]
[347062524,1735488642643,-500.0,0.00011539,2]
[347062528,1735488642656,-500.0,0.00011539,2]
[347062531,1735488642668,-1309.02,0.00011539,2]
[347062533,1735488642681,-5942.9,0.00011539,2]
[347062536,1735488642694,-544.39,0.00011539,2]
[347062538,1735488642707,-500.0,0.00011539,2]
[347062540,1735488642720,-551.62,0.00011539,2]
[347062543,1735488642733,-500.0,0.00011539,2]
[347062545,1735488642749,-500.0,0.00011539,2]
[347062547,1735488642762,-563.6,0.00011539,2]
[347062550,1735488642776,-1715.54,0.00011539,2]
[347062552,1735488642788,-500.0,0.00011539,2]
[347062555,1735488642802,-1235.23,0.00011539,2]
[347062557,1735488642816,-613.4,0.00011539,2]
[347062560,1735488642829,-500.0,0.00011539,2]
[347062562,1735488642842,-500.0,0.00011539,2]
[347062564,1735488642855,-500.0,0.00011539,2]
[347062567,1735488642872,-500.0,0.00011539,2]
[347062570,1735488642886,-554.08,0.00011539,2]
[347062572,1735488642899,-3606.89,0.00011539,2]
[347062575,1735488642913,-500.0,0.00011539,2]
[347062577,1735488642926,-1633.97,0.00011539,2]
[347062579,1735488642939,-672.21,0.00011539,2]
[347062582,1735488642951,-500.0,0.00011539,2]
[347062584,1735488642964,-1141.63,0.00011539,2]
[347062586,1735488642976,-500.0,0.00011539,2]
[347062589,1735488642989,-500.0,0.00011539,2]
[347062591,1735488643003,-4513.73,0.00011539,2]
[347062594,1735488643016,-430.53798321,0.00011539,2]
[347062596,1735488643030,-1349.85,0.00011539,2]
[347062599,1735488643044,-369.94330734,0.00011539,2]
[347062601,1735488643057,-500.0,0.00011539,2]
[347062603,1735488643069,-508.55,0.00011539,2]
[347062606,1735488643082,-500.0,0.00011539,2]
[347062608,1735488643096,-1219.09,0.00011539,2]
[347062611,1735488643109,-2582.9,0.00011539,2]
[347062613,1735488643122,-1357.58,0.00011539,2]
[347062615,1735488643136,-2228.51,0.00011539,2]
[347062618,1735488643148,-500.0,0.00011539,2]
[347062620,1735488643162,-813.92,0.00011539,2]
[347062622,1735488643174,-1998.82,0.00011539,2]
[347062625,1735488643188,-500.0,0.00011539,2]
[347062627,1735488643201,-755.57,0.00011539,2]
[347062630,1735488643215,-586.24,0.00011539,2]
[347062632,1735488643228,-3929.59,0.00011539,2]
[347062634,1735488643240,-1714.78,0.00011539,2]
[347062637,1735488643253,-6587.53,0.00011539,2]
[347062639,1735488643266,-579.57,0.00011539,2]
[347062641,1735488643278,-1115.62,0.00011539,2]
[347062644,1735488643291,-1076.48,0.00011539,2]
[347062646,1735488643303,-3562.23,0.00011539,2]
[347062648,1735488643316,-500.0,0.00011539,2]
[347062651,1735488643328,-1607.56,0.00011539,2]
[347062653,1735488643342,-764.89,0.00011539,2]
[347062655,1735488643357,-839.67,0.00011539,2]
[347062658,1735488643370,-6059.7,0.00011539,2]
[347062660,1735488643382,-500.0,0.00011539,2]
[347062663,1735488643396,-500.0,0.00011539,2]
[347062665,1735488643408,-601.2,0.00011539,2]
[347062667,1735488643421,-500.0,0.00011539,2]
[347062670,1735488643433,-1376.85,0.00011539,2]
[347062672,1735488643445,-500.0,0.00011539,2]
[347062674,1735488643456,-500.0,0.00011539,2]
[347062677,1735488643469,-949.13,0.00011539,2]
[347062679,1735488643481,-19790.74,0.00011539,2]
[347062681,1735488643494,-791.13,0.00011539,2]
[347062684,1735488643506,-2320.67,0.00011539,2]
[347062686,1735488643520,-500.0,0.00011539,2]
[347062688,1735488643532,-500.0,0.00011539,2]
[347062691,1735488643544,-500.0,0.00011539,2]
[347062693,1735488643556,-503.43,0.00011539,2]
[347062695,1735488643568,-500.0,0.00011539,2]
[347062698,1735488643581,-653.52,0.00011539,2]
[347062700,1735488643592,-2382.92,0.00011539,2]
[347062702,1735488643605,-867.85,0.00011539,2]
[347062705,1735488643617,-1507.37,0.00011539,2]
[347062707,1735488643629,-2219.5,0.00011539,2]
[347062709,1735488643641,-617.34,0.00011539,2]
[347062712,1735488643654,-694.29,0.00011539,2]
[347062714,1735488643667,-3871.95,0.00011539,2]
[347062716,1735488643679,-1835.67,0.00011539,2]
[347062719,1735488643691,-449.99394256,0.00011539,2]
[347062721,1735488643703,-595.7,0.00011539,2]
[347062723,1735488643715,-500.0,0.00011539,2]
[347062726,1735488643728,-500.0,0.00011539,2]
[347062728,1735488643742,-573.33367299,0.00011539,2]
[347062730,1735488643755,-1893.74,0.00011539,2]
[347062733,1735488643769,-1947.97,0.00011539,2]
[347062735,1735488643783,-500.0,0.00011539,2]
[347062738,1735488643795,-1878.18,0.00011539,2]
[347062740,1735488643806,-500.0,0.00011539,2]
[347062742,1735488643816,-1164.34,0.00011539,2]
[347062744,1735488643825,-1209.08,0.00011539,2]
[347062746,1735488643835,-5594.98,0.00011539,2]
[347062748,1735488643848,-7228.43,0.00011539,2]
[347062750,1735488643857,-500.0,0.00011539,2]
[347062752,1735488643866,-500.0,0.00011539,2]
[347062754,1735488643875,-500.0,0.00011539,2]
[347062756,1735488643884,-1077.74,0.00011539,2]
[347062758,1735488643893,-1354.3,0.00011539,2]
[347062760,1735488643903,-669.29,0.00011539,2]
[347062762,1735488643912,-12497.94,0.00011539,2]
[347062787,1735488644265,-1725.0,0.00011539,2]
[347062791,1735488644298,-500.0,0.00011539,2]
[347062793,1735488644310,-258.76054866,0.00011539,2]
[347062795,1735488644318,-610.92,0.00011539,2]
[347062797,1735488644327,-530.12,0.00011539,2]
[347062799,1735488644336,-500.0,0.00011539,2]
[347062801,1735488644345,-500.0,0.00011539,2]
[347062803,1735488644354,-500.0,0.00011539,2]
[347062805,1735488644363,-500.0,0.00011539,2]
[347062807,1735488644372,-1372.72,0.00011539,2]
[347062809,1735488644381,-9039.1,0.00011539,2]
[347062811,1735488644390,-170.18329403,0.00011539,2]
[347062813,1735488644399,-500.0,0.00011539,2]
[347062815,1735488644409,-500.0,0.00011539,2]
[347062817,1735488644418,-152.73694,0.00011539,2]
[347062819,1735488644427,-2111.34,0.00011539,2]
[347062822,1735488644438,-500.0,0.00011539,2]
[347062824,1735488644447,-3483.282188,0.00011539,2]
[347062826,1735488644456,-3362.08,0.00011539,2]
[347062828,1735488644466,-3429.50371,0.00011539,2]
[347062830,1735488644474,-500.0,0.00011539,2]
[347062831,1735488644483,-500.0,0.00011539,2]
[347062833,1735488644494,-1401.96,0.00011539,2]
[347062835,1735488644503,-916.92,0.00011539,2]
[347062837,1735488644512,-7675.09,0.00011539,2]
[347062839,1735488644521,-500.0,0.00011539,2]
[347062841,1735488644530,-500.0,0.00011539,2]
[347062843,1735488644539,-500.0,0.00011539,2]
[347062845,1735488644548,-500.0,0.00011539,2]
[347062847,1735488644557,-518.20360037,0.00011539,2]
[347062849,1735488644566,-500.0,0.00011539,2]
[347062851,1735488644575,-500.0,0.00011539,2]
[347062853,1735488644584,-1595.64,0.00011539,2]
[347062855,1735488644594,-1828.3,0.00011539,2]
[347062857,1735488644603,-500.0,0.00011539,2]
[347062859,1735488644613,-1906.71,0.00011539,2]
[347062861,1735488644622,-500.0,0.00011539,2]
[347062863,1735488644631,-4257.37,0.00011539,2]
[347062865,1735488644641,-1770.2,0.00011539,2]
[347062867,1735488644650,-500.0,0.00011539,2]
[347062869,1735488644659,-500.0,0.00011539,2]
[347062871,1735488644668,-621.5122548,0.00011539,2]
[347062873,1735488644678,-500.0,0.00011539,2]
[347062875,1735488644688,-2065.67,0.00011539,2]
[347062877,1735488644697,-500.0,0.00011539,2]
[347062879,1735488644706,-500.0,0.00011539,2]
[347062881,1735488644715,-500.0,0.00011539,2]
[347062883,1735488644724,-5399.0,0.00011539,2]
[347062885,1735488644734,-222.02881883,0.00011539,2]
[347062887,1735488644743,-500.0,0.00011539,2]
[347062889,1735488644753,-500.0,0.00011539,2]
[347062891,1735488644762,-1264648.90242554,0.0001154,2]
[347062893,1735488644771,-8829.1976648,0.0001154,2]
[347062895,1735488644781,-260.83297247,0.0001154,2]
[347062897,1735488644789,-297.95717223,0.0001154,2]
[347062899,1735488644798,-513.74326195,0.0001154,2]
[347062901,1735488644807,-500.0,0.0001154,2]
[347062903,1735488644817,-432.92301899,0.0001154,2]
[347062905,1735488644826,-500.0,0.0001154,2]
[347062907,1735488644835,-500.0,0.0001154,2]
[347062909,1735488644844,-1055.76,0.0001154,2]
[347062911,1735488644854,-500.0,0.0001154,2]
[347062913,1735488644863,-579.98757296,0.0001154,2]
[347062915,1735488644872,-509.06350003,0.0001154,2]
[347062917,1735488644882,-2761.31,0.0001154,2]
[347062919,1735488644892,-500.0,0.0001154,2]
[347062921,1735488644901,-500.0,0.0001154,2]
[347062923,1735488644911,-500.0,0.0001154,2]
[347062925,1735488644920,-463.89410641,0.0001154,2]
[347062927,1735488644930,-500.0,0.0001154,2]
[347062929,1735488644939,-500.0,0.0001154,2]
[347062931,1735488644948,-1327.0,0.0001154,2]
[347062933,1735488644958,-500.0,0.0001154,2]
[347062935,1735488644967,-727.81,0.0001154,2]
[347062937,1735488644976,-20148.96,0.0001154,2]
[347062939,1735488644985,-500.0,0.0001154,2]
[347062941,1735488644995,-500.0,0.0001154,2]
[347062943,1735488645005,-503.87431946,0.0001154,2]
[347062945,1735488645014,-500.0,0.0001154,2]
[347062947,1735488645023,-500.0,0.0001154,2]
[347062949,1735488645032,-500.0,0.0001154,2]
[347062951,1735488645042,-2348.44,0.0001154,2]
[347062952,1735488645050,-500.0,0.0001154,2]
[347062954,1735488645060,-1245.39,0.0001154,2]
[347062956,1735488645069,-500.0,0.0001154,2]
[347062959,1735488645079,-527.41,0.0001154,2]
[347062960,1735488645088,-280.23371514,0.0001154,2]
[347062962,1735488645097,-500.0,0.0001154,2]
[347062964,1735488645107,-476.25899196,0.0001154,2]
[347062966,1735488645116,-502.02822125,0.0001154,2]
[347062968,1735488645125,-500.0,0.0001154,2]
[347062970,1735488645135,-500.0,0.0001154,2]
[347062972,1735488645145,-3503.68,0.0001154,2]
[347062974,1735488645154,-987.26,0.0001154,2]
[347062976,1735488645164,-500.0,0.0001154,2]
[347062979,1735488645173,-500.0,0.0001154,2]
[347062981,1735488645183,-1487.5,0.0001154,2]
[347062982,1735488645192,-500.0,0.0001154,2]
[347062985,1735488645201,-500.0,0.0001154,2]
[347062987,1735488645211,-500.0,0.0001154,2]
[347062989,1735488645223,-500.0,0.0001154,2]
[347062991,1735488645232,-500.0,0.0001154,2]
[347062993,1735488645243,-2207.4,0.0001154,2]
[347062995,1735488645253,-564.6,0.0001154,2]
[347062997,1735488645262,-500.0,0.0001154,2]
[347062999,1735488645271,-500.0,0.0001154,2]
[347063001,1735488645281,-500.0,0.0001154,2]
[347063003,1735488645290,-500.0,0.0001154,2]
[347063005,1735488645300,-987.2,0.0001154,2]
[347063007,1735488645309,-782.42,0.0001154,2]
[347063009,1735488645319,-500.0,0.0001154,2]
[347063011,1735488645329,-500.0,0.0001154,2]
[347063013,1735488645338,-971.08,0.0001154,2]
[347063015,1735488645347,-625.05,0.0001154,2]
[347063017,1735488645356,-500.0,0.0001154,2]
[347063019,1735488645365,-500.0,0.0001154,2]
[347063021,1735488645374,-500.0,0.0001154,2]
[347063023,1735488645383,-500.0,0.0001154,2]
[347063025,1735488645392,-500.0,0.0001154,2]
[347063027,1735488645402,-700.74,0.0001154,2]
[347063029,1735488645411,-500.0,0.0001154,2]
[347063031,1735488645420,-500.0,0.0001154,2]
[347063033,1735488645430,-813.32,0.0001154,2]
[347063035,1735488645439,-500.0,0.0001154,2]
[347063037,1735488645449,-14656.54,0.0001154,2]
[347063039,1735488645458,-819.7,0.0001154,2]
[347063041,1735488645467,-500.0,0.0001154,2]
[347063043,1735488645477,-500.0,0.0001154,2]
[347063045,1735488645486,-500.0,0.0001154,2]
[347063047,1735488645496,-500.0,0.0001154,2]
[347063049,1735488645505,-2939.33,0.0001154,2]
[347063051,1735488645515,-500.0,0.0001154,2]
[347063053,1735488645525,-828.91,0.0001154,2]
[347063055,1735488645535,-500.0,0.0001154,2]
[347063057,1735488645544,-500.0,0.0001154,2]
[347063059,1735488645554,-2504.92,0.0001154,2]
[347063062,1735488645564,-500.0,0.0001154,2]
[347063065,1735488645573,-500.0,0.0001154,2]
[347063068,1735488645582,-530.75,0.0001154,2]
[347063070,1735488645591,-2500.52,0.0001154,2]
[347063072,1735488645600,-500.0,0.0001154,2]
[347063074,1735488645609,-500.0,0.0001154,2]
[347063076,1735488645618,-362.10569462,0.0001154,2]
[347063078,1735488645629,-500.0,0.0001154,2]
[347063080,1735488645638,-472.46732669,0.0001154,2]
[347063082,1735488645648,-1067.86,0.0001154,2]
[347063084,1735488645657,-500.0,0.0001154,2]
[347063086,1735488645666,-500.0,0.0001154,2]
[347063088,1735488645675,-500.0,0.0001154,2]
[347063090,1735488645685,-2562.57,0.0001154,2]
[347063092,1735488645694,-605.28,0.0001154,2]
[347063094,1735488645703,-4160.82,0.0001154,2]
[347063096,1735488645713,-760.22,0.0001154,2]
[347063098,1735488645722,-500.0,0.0001154,2]
[347063100,1735488645731,-1889.09,0.0001154,2]
[347063102,1735488645741,-500.0,0.0001154,2]
[347063104,1735488645753,-500.0,0.0001154,2]
[347063106,1735488645762,-1317.14,0.0001154,2]
[347063108,1735488645772,-500.0,0.0001154,2]
[347063110,1735488645781,-515.10893238,0.0001154,2]
[347063112,1735488645791,-160.93013026,0.0001154,2]
[347063114,1735488645800,-500.0,0.0001154,2]
[347063116,1735488645809,-500.0,0.0001154,2]
[347063118,1735488645819,-500.0,0.0001154,2]
[347063120,1735488645828,-500.0,0.0001154,2]
[347063122,1735488645837,-2304.44,0.0001154,2]
[347063123,1735488645846,-500.0,0.0001154,2]
[347063124,1735488645855,-1101.75,0.0001154,2]
[347063125,1735488645865,-1395.97,0.0001154,2]
[347063126,1735488645874,-500.0,0.0001154,2]
[347063127,1735488645883,-500.0,0.0001154,2]
[347063128,1735488645892,-500.0,0.0001154,2]
[347063129,1735488645901,-1565.21,0.0001154,2]
[347063130,1735488645910,-500.0,0.0001154,2]
[347063132,1735488645919,-429.3026671,0.0001154,2]
[347063134,1735488645928,-550.22,0.0001154,2]
[347063136,1735488645937,-528.87,0.0001154,2]
[347063138,1735488645947,-500.0,0.0001154,2]
[347063140,1735488645956,-2406.87,0.0001154,2]
[347063142,1735488645966,-500.0,0.0001154,2]
[347063144,1735488645975,-500.0,0.0001154,2]
[347063146,1735488645985,-1148.49,0.0001154,2]
[347063148,1735488645994,-500.0,0.0001154,2]
[347063150,1735488646003,-4245.74,0.0001154,2]
[347063151,1735488646012,-500.0,0.0001154,2]
[347063153,1735488646022,-500.0,0.0001154,2]
[347063155,1735488646031,-405.11373609,0.0001154,2]
[347063158,1735488646040,-2334.13,0.0001154,2]
[347063159,1735488646050,-500.0,0.0001154,2]
[347063161,1735488646059,-1274.72,0.0001154,2]
[347063164,1735488646069,-500.0,0.0001154,2]
[347063165,1735488646078,-500.0,0.0001154,2]
[347063167,1735488646087,-500.0,0.0001154,2]
[347063170,1735488646097,-500.0,0.0001154,2]
[347063172,1735488646107,-1034.1,0.0001154,2]
[347063174,1735488646116,-500.0,0.0001154,2]
[347063175,1735488646125,-2292.21,0.0001154,2]
[347063178,1735488646136,-500.0,0.0001154,2]
[347063180,1735488646145,-500.0,0.0001154,2]
[347063182,1735488646155,-500.0,0.0001154,2]
[347063183,1735488646164,-1392.86,0.0001154,2]
[347063185,1735488646174,-500.0,0.0001154,2]
[347063187,1735488646183,-500.0,0.0001154,2]
[347063189,1735488646193,-710.02,0.0001154,2]
[347063191,1735488646202,-1928.1,0.0001154,2]
[347063193,1735488646211,-500.0,0.0001154,2]
[347063195,1735488646221,-841.82,0.0001154,2]
[347063197,1735488646231,-500.0,0.0001154,2]
[347063199,1735488646240,-2218.33,0.0001154,2]